bitfinex-derivatives/quotes_BTCF0:USTF0_20250416
["timestamp","ask_amount","ask_price","bid_price","bid_amount"]
[1744821046618,0.1177681,84920.0,84919.0,0.2302686]
[1744821048609,0.1498681,84920.0,84919.0,0.2302686]
[1744821048926,0.1187681,84920.0,84919.0,0.2302686]
[1744821049320,0.1508681,84920.0,84919.0,0.2302686]
[1744821051128,0.1508681,84920.0,84919.0,0.0813]
[1744821051425,0.1508681,84920.0,84919.0,0.5598686]
[1744821051626,0.1187681,84920.0,84919.0,0.9206686]
[1744821051826,0.1187681,84920.0,84919.0,0.9527686]
[1744821052225,0.001,84920.0,84919.0,0.9527686]
[1744821052429,0.00108,84920.0,84919.0,0.9527686]
[1744821053327,0.00108,84920.0,84919.0,0.9627686]
[1744821053524,0.1187673,84920.0,84919.0,0.9627686]
[1744821054317,0.1516673,84920.0,84919.0,0.9627686]
[1744821055524,0.1517473,84920.0,84919.0,0.9627686]
[1744821055824,0.1516673,84920.0,84919.0,0.9627686]
[1744821056025,0.1517473,84920.0,84919.0,0.9627686]
[1744821057031,0.1517473,84920.0,84919.0,0.2411686]
[1744821057227,0.1517473,84920.0,84919.0,0.6019686]
[1744821058030,0.1517473,84920.0,84919.0,0.5919686]
[1744821064327,0.1188473,84920.0,84919.0,0.5919686]
[1744821065329,0.1512473,84920.0,84919.0,0.5919686]
[1744821066134,0.1512473,84920.0,84919.0,0.5598686]
[1744821066441,0.2164473,84920.0,84919.0,0.5285686]
[1744821066939,0.2164473,84920.0,84919.0,0.4108]
[1744821067237,0.2164473,84920.0,84919.0,0.5285686]
[1744821067423,0.2164473,84920.0,84919.0,0.5617686]
[1744821067629,0.2164473,84920.0,84919.0,0.5947686]
[1744821068129,0.1512473,84920.0,84919.0,0.5947686]
[1744821068429,0.1512473,84920.0,84919.0,0.5617686]
[1744821068629,0.1826473,84920.0,84919.0,0.5285686]
[1744821073438,0.00108,84920.0,84919.0,0.5595686]
[1744821073633,0.00014581,84934.0,84927.0,0.1177576]
[1744821073837,0.00014581,84934.0,84933.0,0.1177492]
[1744821074030,0.00014581,84934.0,84933.0,0.1877492]
[1744821074229,0.00014581,84934.0,84933.0,0.2490492]
[1744821074737,0.1178278,84934.0,84933.0,0.3079231]
[1744821075340,8e-05,84934.0,84933.0,0.3079231]
[1744821075833,0.00017665,84942.0,84941.0,0.1177381]
[1744821076042,0.00017665,84942.0,84941.0,0.5285381]
[1744821076234,0.03337665,84942.0,84941.0,0.5917381]
[1744821076536,0.15111345,84942.0,84941.0,0.5917381]
[1744821076730,0.03337665,84942.0,84941.0,0.5917381]
[1744821076934,0.15111345,84942.0,84941.0,0.5917381]
[1744821077233,0.03337665,84942.0,84941.0,0.5917381]
[1744821077632,0.03537665,84942.0,84941.0,0.5917381]
[1744821077835,0.04037665,84942.0,84941.0,0.5917381]
[1744821078037,0.1177219,84953.0,84948.0,0.1177284]
[1744821078345,0.04892648,84951.0,84948.0,0.4985284]
[1744821078530,0.04892648,84951.0,84950.0,0.1177257]
[1744821078836,0.04892648,84951.0,84950.0,0.1377257]
[1744821079443,0.00010801,84957.0,84955.0,0.1177187]
[1744821079639,0.00010801,84957.0,84955.0,0.5085187]
[1744821080033,0.1422755,84958.0,84955.0,0.5085187]
[1744821080337,0.00508,84956.0,84955.0,0.5400187]
[1744821081043,0.13918057,84956.0,84955.0,0.5718187]
[1744821081232,0.1227974,84956.0,84955.0,0.5718187]
[1744821081426,0.1237974,84956.0,84955.0,0.5718187]
[1744821081635,0.1558974,84956.0,84955.0,0.5718187]
[1744821081831,0.00608,84956.0,84955.0,0.5403187]
[1744821082039,0.02456,84958.0,84957.0,0.117716]
[1744821082237,0.02456,84958.0,84957.0,0.237716]
[1744821082637,0.02464,84958.0,84957.0,0.237716]
[1744821083747,0.02564,84958.0,84957.0,0.237716]
[1744821084047,0.02664,84958.0,84957.0,0.237716]
[1744821084240,0.2081546,84958.0,84957.0,0.237716]
[1744821084444,0.2081546,84958.0,84957.0,0.12]
[1744821084744,0.2071546,84958.0,84957.0,0.12]
[1744821085143,0.2071546,84958.0,84957.0,0.237716]
[1744821086044,0.00019684,84974.0,84963.0,0.0588531]
[1744821086244,0.0332,84966.0,84965.0,0.1177049]
[1744821086548,0.1509035,84966.0,84965.0,0.5789049]
[1744821086750,0.1509835,84966.0,84965.0,0.5817049]
[1744821086947,0.1509835,84966.0,84965.0,0.5485049]
[1744821087142,0.2159835,84966.0,84965.0,0.5485049]
[1744821087446,0.22460732,84966.0,84965.0,0.5485049]
[1744821087838,0.22560732,84966.0,84965.0,0.5485049]
[1744821088041,0.22760732,84966.0,84965.0,0.5485049]
[1744821090440,0.22760732,84966.0,84965.0,0.5788049]
[1744821091150,0.19480732,84966.0,84965.0,0.5788049]
[1744821091350,0.04490382,84966.0,84965.0,0.6119049]
[1744821091551,0.04482382,84966.0,84965.0,0.6119049]
[1744821091750,0.04490382,84966.0,84965.0,0.6119049]
[1744821092653,0.16260732,84966.0,84965.0,0.6119049]
[1744821093055,0.19290732,84966.0,84965.0,0.6119049]
[1744821093256,0.19290732,84966.0,84965.0,0.5485049]
[1744821093953,0.19290732,84966.0,84965.0,0.5808049]
[1744821095051,0.19290732,84966.0,84965.0,0.6114049]
[1744821098649,0.00308,84966.0,84965.0,0.6114049]
[1744821098856,0.18532837,84970.0,84969.0,0.1176993]
[1744821099057,0.18532837,84970.0,84969.0,0.2426993]
[1744821099358,0.18540837,84970.0,84969.0,0.2426993]
[1744821099547,0.20145672,84970.0,84969.0,0.2426993]
[1744821100053,0.20345672,84970.0,84969.0,0.2426993]
[1744821100255,0.060929,84970.0,84969.0,0.2426993]
[1744821100458,0.060849,84970.0,84969.0,0.2426993]
[1744821100664,0.060929,84970.0,84969.0,0.2426993]
[1744821100957,0.091729,84970.0,84969.0,0.2426993]
[1744821102660,0.10759907,84970.0,84969.0,0.2426993]
[1744821103059,0.13779907,84970.0,84969.0,0.2426993]
[1744821104764,0.091729,84970.0,84969.0,0.2426993]
[1744821106167,0.091729,84970.0,84969.0,0.6034993]
[1744821107063,0.13934442,84970.0,84969.0,0.6034993]
[1744821108968,0.123129,84970.0,84969.0,0.6034993]
[1744821109569,0.091729,84970.0,84969.0,0.6034993]
[1744821110257,0.00208,84970.0,84969.0,0.6034993]
[1744821110459,0.01639377,84972.0,84971.0,0.1176966]
[1744821110660,0.01639377,84972.0,84971.0,0.2795966]
[1744821111069,0.00017614,84974.0,84973.0,0.1176938]
[1744821111266,0.00017614,84974.0,84973.0,0.2176938]
[1744821111465,0.00514581,84982.0,84981.0,0.1176827]
[1744821111655,0.00514581,84982.0,84981.0,0.5902827]
[1744821111967,0.005,84982.0,84981.0,0.5902827]
[1744821112268,0.00508,84982.0,84981.0,0.5902827]
[1744821112768,0.00808,84982.0,84981.0,0.5902827]
[1744821114170,0.03928,84982.0,84981.0,0.5902827]
[1744821124470,0.03160801,84988.0,84987.0,0.1176744]
[1744821124977,0.0315,84988.0,84987.0,0.1915744]
[1744821125277,0.1,85000.0,84991.0,0.0588344]
[1744821125472,0.0318,84998.0,84997.0,0.1176606]
[1744821125665,0.15854308,84998.0,84997.0,0.4784606]
[1744821125974,0.20442956,84998.0,84997.0,0.4884606]
[1744821126186,0.20450956,84998.0,84997.0,0.5212606]
[1744821126367,0.08677036,84998.0,84997.0,0.5212606]
[1744821126568,0.08685036,84998.0,84997.0,0.3708]
[1744821126780,0.20450956,84998.0,84997.0,0.3608]
[1744821127277,0.117673,84988.0,84987.0,0.0313]
[1744821127478,0.117673,84988.0,84987.0,0.0413]
[1744821127678,0.212673,84988.0,84987.0,0.0413]
[1744821129371,0.212673,84988.0,84987.0,0.01]
[1744821129680,0.42956,84988.0,84970.0,0.3608]
[1744821129979,0.42956,84988.0,84954.0,0.066]
[1744821129980,0.117718,84956.0,84954.0,0.066]
[1744821130175,0.0612,84955.0,84954.0,0.2348]
[1744821130382,0.0612,84955.0,84954.0,0.268]
[1744821131582,0.07764189,84955.0,84954.0,0.268]
[1744821131773,0.0612,84955.0,84954.0,0.269]
[1744821131973,0.1789187,84955.0,84954.0,0.171]
[1744821132480,0.43769713,84955.0,84954.0,0.001]
[1744821132778,0.45404751,84955.0,84954.0,0.002]
[1744821133373,0.0588631,84950.0,84942.0,0.23840818]
[1744821133579,0.1177298,84947.0,84946.0,0.00017654]
[1744821134773,0.14796,84949.0,84946.0,0.00017654]
[1744821135088,0.1198098,84947.0,84946.0,0.01017654]
[1744821135377,0.1197298,84947.0,84946.0,0.01017654]
[1744821135679,0.00508,84947.0,84946.0,0.01017654]
[1744821135978,0.005,84947.0,84946.0,0.07417654]
[1744821136285,0.00408,84947.0,84946.0,0.07417654]
[1744821136486,0.00408,84947.0,84946.0,1.57417654]
[1744821137186,0.00308,84947.0,84946.0,1.57417654]
[1744821138487,0.1208098,84947.0,84946.0,1.57417654]
[1744821142485,0.1208098,84947.0,84946.0,0.04297654]
[1744821142694,0.1208098,84947.0,84946.0,0.00017654]
[1744821143081,0.1840098,84947.0,84946.0,0.00017654]
[1744821143285,0.1850098,84947.0,84946.0,0.00017654]
[1744821147790,0.1177451,84936.0,84935.0,0.0306]
[1744821148085,0.1177451,84936.0,84935.0,0.1006]
[1744821148677,0.1797451,84936.0,84935.0,0.1006]
[1744821148879,0.1797451,84936.0,84927.0,0.00523968]
[1744821148880,0.0588764,84931.0,84927.0,0.00523968]
[1744821149082,0.0588741,84934.0,84927.0,0.00523968]
[1744821149083,0.1177562,84928.0,84927.0,0.05523968]
[1744821149285,0.1177562,84928.0,84927.0,0.00523968]
[1744821149588,0.1797562,84928.0,84927.0,0.00523968]
[1744821150186,0.1797562,84928.0,84927.0,0.00623968]
[1744821150587,0.1797562,84928.0,84927.0,0.00823968]
[1744821152082,0.1797562,84928.0,84927.0,0.00523968]
[1744821152282,0.1797562,84928.0,84915.0,0.3608]
[1744821152283,0.1177728,84916.0,84915.0,0.3608]
[1744821152479,0.1177728,84916.0,84915.0,0.3808]
[1744821152882,0.1826728,84916.0,84915.0,0.3808]
[1744821153791,0.1826728,84916.0,84915.0,0.3838]
[1744821153984,0.1826728,84916.0,84915.0,0.3868]
[1744821154185,0.19787961,84916.0,84915.0,0.3868]
[1744821155985,0.13297961,84916.0,84915.0,0.3868]
[1744821156195,0.01520681,84916.0,84915.0,0.3868]
[1744821156395,0.1177728,84916.0,84915.0,0.3868]
[1744821156697,0.13312036,84916.0,84915.0,0.3868]
[1744821157490,0.19682036,84916.0,84915.0,0.3868]
[1744821164307,0.13312036,84916.0,84915.0,0.3868]
[1744821164496,0.19720036,84916.0,84915.0,0.3868]
[1744821172401,0.16450036,84916.0,84915.0,0.3868]
[1744821172596,0.16450036,84916.0,84915.0,0.026]
[1744821173100,0.01542756,84916.0,84915.0,0.026]
[1744821173496,0.01534756,84916.0,84915.0,0.089]
[1744821173804,0.1177714,84917.0,84916.0,0.1177728]
[1744821174003,0.1177714,84917.0,84916.0,0.1907728]
[1744821174806,0.1178514,84917.0,84916.0,0.1907728]
[1744821175104,0.1178514,84917.0,84916.0,0.1967728]
[1744821175907,0.13273266,84917.0,84916.0,0.1967728]
[1744821178711,0.13273266,84917.0,84916.0,0.079]
[1744821179611,0.13273266,84917.0,84916.0,0.1967728]
[1744821180107,0.13273266,84917.0,84916.0,0.079]
[1744821180507,0.16313266,84917.0,84916.0,0.079]
[1744821180714,0.16313266,84917.0,84916.0,0.1967728]
[1744821181218,0.13273266,84917.0,84916.0,0.1967728]
[1744821182208,0.01496126,84917.0,84916.0,0.1967728]
[1744821182421,0.0588823,84922.0,84921.0,0.1177659]
[1744821182617,0.0588823,84922.0,84921.0,0.5811659]
[1744821182909,0.17665,84922.0,84921.0,0.4634]
[1744821183115,0.19218494,84922.0,84921.0,0.4634]
[1744821183311,0.19218494,84922.0,84921.0,0.5811659]
[1744821183706,0.19218494,84922.0,84921.0,0.5851659]
[1744821184613,0.19218494,84922.0,84921.0,0.5540659]
[1744821185012,0.01553494,84922.0,84921.0,0.5540659]
[1744821185207,0.00010801,84928.0,84927.0,0.1177576]
[1744821185406,0.0324,84934.0,84932.0,0.1177492]
[1744821185606,0.1501478,84934.0,84933.0,0.4586]
[1744821185911,0.00010801,84935.0,84933.0,0.4686]
[1744821186110,0.17672901,84935.0,84934.0,0.1177478]
[1744821186314,0.17672901,84935.0,84934.0,0.1927478]
[1744821186512,0.176621,84935.0,84934.0,0.1927478]
[1744821186708,0.176701,84935.0,84934.0,0.1927478]
[1744821187407,0.19388976,84935.0,84934.0,0.1927478]
[1744821187608,0.19488976,84935.0,84934.0,0.1927478]
[1744821188013,0.19288976,84935.0,84934.0,0.1937478]
[1744821188210,0.01526876,84935.0,84934.0,0.1937478]
[1744821188516,0.01518876,84935.0,84934.0,0.1947478]
[1744821188717,0.1796218,84936.0,84935.0,0.1177465]
[1744821188916,0.1796218,84936.0,84935.0,0.5719465]
[1744821189619,0.1797018,84936.0,84935.0,0.5719465]
[1744821189814,0.1797018,84936.0,84935.0,0.6319465]
[1744821190014,0.1796218,84936.0,84935.0,0.6319465]
[1744821190217,0.00017654,84942.0,84941.0,0.1177381]
[1744821190416,0.00017654,84942.0,84941.0,0.2077381]
[1744821191012,0.00017654,84942.0,84941.0,0.2700381]
[1744821191318,0.00017654,84942.0,84941.0,0.2730381]
[1744821191519,0.11791334,84942.0,84941.0,0.2730381]
[1744821192314,0.11791334,84942.0,84941.0,0.2760381]
[1744821193322,0.11791334,84942.0,84941.0,0.2750381]
[1744821193824,0.11791334,84942.0,84941.0,0.2730381]
[1744821194022,0.11791334,84942.0,84941.0,0.2750381]
[1744821194214,0.11791334,84942.0,84941.0,0.2740381]
[1744821194414,0.11791334,84942.0,84941.0,0.2730381]
[1744821194922,0.11791334,84942.0,84941.0,0.2700381]
[1744821195119,0.11791334,84942.0,84941.0,0.2720381]
[1744821195318,0.15091334,84942.0,84941.0,0.2720381]
[1744821197023,0.15091334,84942.0,84941.0,0.2730381]
[1744821197225,0.18111334,84942.0,84941.0,0.2413381]
[1744821197526,0.18111334,84942.0,84941.0,0.2403381]
[1744821198924,0.14811334,84942.0,84941.0,0.2403381]
[1744821199125,0.00017654,84942.0,84941.0,0.2403381]
[1744821199325,0.11791334,84942.0,84941.0,0.2713381]
[1744821199525,0.11791334,84942.0,84941.0,0.2703381]
[1744821199727,0.15119334,84942.0,84941.0,0.2713381]
[1744821200525,0.15119334,84942.0,84941.0,0.2403381]
[1744821200730,0.18399334,84942.0,84941.0,0.2403381]
[1744821202329,0.18399334,84942.0,84941.0,0.6011381]
[1744821204124,0.18399334,84942.0,84941.0,0.6315381]
[1744821205227,0.06625654,84942.0,84941.0,0.6315381]
[1744821205431,0.00025654,84942.0,84941.0,0.6315381]
[1744821205831,0.11799334,84942.0,84941.0,0.6315381]
[1744821206023,0.11791334,84942.0,84941.0,0.6315381]
[1744821206223,0.11799334,84942.0,84941.0,0.6315381]
[1744821208738,0.00025654,84942.0,84941.0,0.6315381]
[1744821208935,0.09097241,84948.0,84941.0,0.6315381]
[1744821208936,0.0588643,84948.0,84947.0,0.1177298]
[1744821209232,0.1765941,84948.0,84947.0,0.1777298]
[1744821209425,0.1911661,84948.0,84947.0,0.2755298]
[1744821209624,0.2223661,84948.0,84947.0,0.2755298]
[1744821210029,0.1046363,84948.0,84947.0,0.2755298]
[1744821210226,0.015572,84948.0,84947.0,0.2755298]
[1744821210431,0.0631,84959.0,84954.0,0.1177201]
[1744821210628,0.0631,84959.0,84954.0,0.4885201]
[1744821210629,0.00010801,84955.0,84954.0,0.4885201]
[1744821210929,0.0631,84959.0,84955.0,0.1177187]
[1744821211227,0.01999794,84956.0,84955.0,0.1277187]
[1744821211420,0.12289404,84956.0,84955.0,0.1932187]
[1744821212626,0.12297404,84956.0,84955.0,0.1932187]
[1744821212827,0.12297404,84956.0,84955.0,0.1972187]
[1744821213021,0.00525654,84956.0,84955.0,0.1972187]
[1744821213734,0.00525654,84956.0,84955.0,0.2572187]
[1744821213935,0.0313,84967.0,84966.0,0.1177035]
[1744821214134,0.32550563,84969.0,84968.0,0.1177007]
[1744821214332,0.35680563,84969.0,84968.0,0.1477007]
[1744821214637,0.20788633,84969.0,84968.0,0.5728007]
[1744821215034,0.20780633,84969.0,84968.0,0.5728007]
[1744821215226,0.20788633,84969.0,84968.0,0.5728007]
[1744821215538,0.20988633,84969.0,84968.0,0.5728007]
[1744821215927,0.20980633,84969.0,84968.0,0.5728007]
[1744821216239,0.23860526,84975.0,84974.0,0.1176924]
[1744821216429,0.23860526,84975.0,84974.0,0.5684924]
[1744821216629,0.00010801,84983.0,84976.0,0.0588448]
[1744821216829,0.00010801,84983.0,84982.0,0.4784813]
[1744821217031,0.11778801,84983.0,84982.0,0.5923813]
[1744821217932,0.14778801,84983.0,84982.0,0.5923813]
[1744821218839,0.14978801,84983.0,84982.0,0.5923813]
[1744821219328,0.18188801,84983.0,84982.0,0.5923813]
[1744821220733,0.18188801,84983.0,84982.0,0.4108]
[1744821220923,0.1177007,84968.0,84967.0,0.0311]
[1744821221128,0.1177132,84959.0,84958.0,0.3608]
[1744821221333,0.1177132,84959.0,84958.0,0.4008]
[1744821221726,0.1815132,84959.0,84958.0,0.5185146]
[1744821222437,0.1815132,84959.0,84958.0,0.5205146]
[1744821223939,0.1815132,84959.0,84958.0,0.5215146]
[1744821225139,0.1815132,84959.0,84958.0,0.4038]
[1744821225329,0.5423132,84959.0,84958.0,0.003]
[1744821226434,0.5423132,84959.0,84958.0,0.001]
[1744821227233,0.1177201,84954.0,84953.0,0.00506159]
[1744821228036,0.1819201,84954.0,84953.0,0.00506159]
[1744821229932,0.1829201,84954.0,84953.0,0.00506159]
[1744821230529,0.1819201,84954.0,84953.0,0.00506159]
[1744821230732,0.1829201,84954.0,84953.0,0.00506159]
[1744821232042,0.1177478,84934.0,84933.0,0.5374195]
[1744821232236,0.1177478,84934.0,84933.0,0.6474195]
[1744821232842,0.1177478,84934.0,84933.0,0.4708]
[1744821233043,0.1799478,84934.0,84933.0,0.11]
[1744821233337,0.1177562,84928.0,84925.0,0.00017654]
[1744821233641,0.1177562,84928.0,84927.0,0.14282074]
[1744821233839,0.13214035,84928.0,84927.0,0.14282074]
[1744821234041,0.05904534,84942.0,84934.0,0.0588736]
[1744821234339,0.00017654,84942.0,84941.0,0.4785381]
[1744821234537,0.00025654,84942.0,84941.0,0.5085381]
[1744821234737,0.00025654,84942.0,84941.0,0.9293381]
[1744821234933,0.001,84954.0,84941.0,0.8216]
[1744821235138,0.1508201,84954.0,84953.0,0.4785215]
[1744821235334,0.16513745,84954.0,84953.0,0.4885215]
[1744821235638,0.16421745,84954.0,84953.0,0.4885215]
[1744821236538,0.19591745,84954.0,84953.0,0.5214215]
[1744821236839,0.19591745,84954.0,84953.0,0.4895215]
[1744821237228,0.19591745,84954.0,84953.0,0.4905215]
[1744821240542,0.19591745,84954.0,84953.0,0.4895215]
[1744821240745,0.19591745,84954.0,84953.0,0.4905215]
[1744821240942,0.19591745,84954.0,84953.0,0.1297215]
[1744821241341,0.19591745,84954.0,84953.0,0.1287215]
[1744821241539,0.19591745,84954.0,84953.0,0.1297215]
[1744821241848,0.19591745,84954.0,84953.0,0.1287215]
[1744821242043,0.19591745,84954.0,84953.0,0.1297215]
[1744821242345,0.19591745,84954.0,84953.0,0.012]
[1744821242546,0.1177312,84946.0,84937.0,0.0588715]
[1744821242747,0.1177312,84946.0,84943.0,0.1177341]
[1744821243048,0.1800312,84946.0,84944.0,0.1177336]
[1744821243244,0.1800312,84946.0,84941.0,0.419669]
[1744821243649,0.1800312,84946.0,84944.0,0.1177339]
[1744821243852,0.1800312,84946.0,84945.0,0.00117654]
[1744821244459,0.1800312,84946.0,84945.0,0.11890914]
[1744821244642,0.1800312,84946.0,84945.0,0.00117654]
[1744821246947,0.1800312,84946.0,84945.0,0.11890914]
[1744821247150,0.00611699,95154.0,84945.0,0.00117654]
[1744821247151,0.00880031,84955.0,84945.0,0.00117654]
[1744821247451,0.42571735,84954.0,84953.0,0.4785215]
[1744821247655,0.42579735,84954.0,84953.0,0.47747893]
[1744821247952,0.42571735,84954.0,84953.0,0.50977893]
[1744821248149,0.42579735,84954.0,84953.0,0.50977893]
[1744821249349,0.42679735,84954.0,84953.0,0.50977893]
[1744821249752,0.00108,84954.0,84953.0,0.50977893]
[1744821250048,0.00017654,84962.0,84961.0,0.1177104]
[1744821250250,0.13242588,84962.0,84961.0,0.4885104]
[1744821250454,0.11799365,84962.0,84961.0,0.4885104]
[1744821250656,0.11799365,84962.0,84961.0,0.5524104]
[1744821251750,0.13240409,84962.0,84961.0,0.5524104]
[1744821252157,0.13240409,84962.0,84961.0,0.5534104]
[1744821252365,0.01469499,84962.0,84961.0,0.5534104]
[1744821252560,0.01469499,84962.0,84961.0,0.5544104]
[1744821252858,0.01458698,84962.0,84961.0,0.5544104]
[1744821253158,0.13237598,84962.0,84961.0,0.5544104]
[1744821259262,0.19577598,84962.0,84961.0,0.5229104]
[1744821260664,0.19577598,84962.0,84961.0,0.4905104]
[1744821260874,0.1177201,84954.0,84953.0,0.3608]
[1744821261165,0.1177201,84954.0,84953.0,0.3808]
[1744821261362,0.1821201,84954.0,84953.0,0.3808]
[1744821262269,0.1821201,84954.0,84953.0,0.3828]
[1744821262868,0.1821201,84954.0,84953.0,0.5015215]
[1744821265168,0.1821201,84954.0,84953.0,0.5344215]
[1744821265371,0.1821201,84954.0,84953.0,0.52338043]
[1744821266470,0.1821201,84954.0,84945.0,0.05904214]
[1744821266471,0.0588633,84950.0,84945.0,0.05904214]
[1744821266663,0.0588633,84950.0,84945.0,0.13790914]
[1744821266664,0.1177312,84946.0,84945.0,0.13790914]
[1744821267062,0.1783312,84946.0,84945.0,0.13790914]
[1744821267268,0.1783312,84946.0,84945.0,0.02017654]
[1744821267464,0.1783312,84946.0,84945.0,0.13790914]
[1744821267864,0.1484112,84946.0,84945.0,0.20150914]
[1744821268170,0.1484112,84946.0,84945.0,0.20350914]
[1744821268566,0.1484112,84946.0,84945.0,0.20650914]
[1744821268876,0.1484112,84946.0,84945.0,0.20450914]
[1744821269170,0.1484112,84946.0,84945.0,0.20650914]
[1744821269771,8e-05,84946.0,84945.0,0.20650914]
[1744821269967,0.0588579,84958.0,84953.0,0.0588607]
[1744821270168,0.00014581,84956.0,84955.0,0.1177187]
[1744821270364,0.01458698,84962.0,84960.0,0.1765663]
[1744821270569,0.1177106,84961.0,84960.0,0.5673663]
[1744821270767,0.01469499,84962.0,84961.0,0.1177104]
[1744821270972,0.01458698,84962.0,84961.0,0.1477104]
[1744821271168,0.01466698,84962.0,84961.0,0.1477104]
[1744821271772,0.00025654,84962.0,84961.0,0.1477104]
[1744821272086,0.1176922,84975.0,84974.0,0.117691]
[1744821272369,0.14933801,84975.0,84974.0,0.488491]
[1744821272566,0.1491922,84975.0,84974.0,0.488491]
[1744821272769,0.1492722,84975.0,84974.0,0.488491]
[1744821273172,0.1677143,84975.0,84974.0,0.488491]
[1744821274370,0.1707143,84975.0,84974.0,0.488491]
[1744821274778,0.1727143,84975.0,84974.0,0.488491]
[1744821278577,0.1,85000.0,84976.0,0.0588441]
[1744821278775,0.0332,84993.0,84986.0,0.0588374]
[1744821278976,0.2087936,84997.0,84996.0,0.117662]
[1744821279169,0.2087936,84997.0,84996.0,0.127662]
[1744821279676,0.2088736,84997.0,84996.0,0.127662]
[1744821280373,0.22709999,84997.0,84996.0,0.127662]
[1744821281268,0.23009999,84997.0,84996.0,0.127662]
[1744821282583,0.2389195,84997.0,84996.0,0.127662]
[1744821289886,0.2388395,84997.0,84996.0,0.127662]
[1744821290189,0.2389195,84997.0,84996.0,0.158862]
[1744821290589,0.2389195,84997.0,84996.0,0.189262]
[1744821291088,0.2066195,84997.0,84996.0,0.189262]
[1744821291281,0.0889568,84997.0,84996.0,0.189262]
[1744821291481,0.0300459,84997.0,84996.0,0.189262]
[1744821291681,0.0301259,84997.0,84996.0,0.189262]
[1744821291884,0.1477065,84997.0,84996.0,0.189262]
[1744821292085,0.1477865,84997.0,84996.0,0.189262]
[1744821292586,0.1795865,84997.0,84996.0,0.189262]
[1744821293793,0.0619259,84997.0,84996.0,0.189262]
[1744821293988,0.04369951,84997.0,84996.0,0.189262]
[1744821294290,0.01189951,84997.0,84996.0,0.189262]
[1744821295887,0.12956011,84997.0,84996.0,0.189262]
[1744821296388,0.16206011,84997.0,84996.0,0.189262]
[1744821296992,0.18013782,84997.0,84996.0,0.189262]
[1744821298803,0.42327722,84997.0,84979.0,0.01]
[1744821298989,0.3608,84990.0,84984.0,0.01]
[1744821299189,0.3608,84990.0,84965.0,0.3608]
[1744821299190,0.1176993,84969.0,84968.0,0.0323]
[1744821299492,0.1177035,84967.0,84965.0,0.4785007]
[1744821299696,0.1507035,84966.0,84965.0,0.4885007]
[1744821299886,0.1839035,84966.0,84965.0,0.4885007]
[1744821301094,0.1839035,84966.0,84965.0,0.4925007]
[1744821301599,0.1839035,84966.0,84965.0,0.4955007]
[1744821302090,0.1839035,84966.0,84965.0,0.3778]
[1744821302399,0.1839035,84966.0,84965.0,0.017]
[1744821302593,0.1839035,84966.0,84965.0,0.1317049]
[1744821302790,0.1839035,84966.0,84965.0,0.1337049]
[1744821303488,0.1839035,84966.0,84965.0,0.1317049]
[1744821304395,0.1839035,84966.0,84965.0,0.4925049]
[1744821304592,0.1839835,84966.0,84965.0,0.3748]
[1744821304795,0.1839835,84966.0,84965.0,0.014]
[1744821305095,0.1839835,84966.0,84965.0,0.1317049]
[1744821305793,0.1839835,84966.0,84965.0,0.013]
[1744821306184,0.1839835,84966.0,84965.0,0.1307049]
[1744821306585,0.1839835,84966.0,84965.0,0.1297049]
[1744821307087,0.1839835,84966.0,84965.0,0.012]
[1744821308189,0.1839835,84966.0,84965.0,0.1297049]
[1744821308392,0.1839035,84966.0,84965.0,0.1297049]
[1744821308592,0.1839035,84966.0,84965.0,0.1943049]
[1744821308593,8e-05,84966.0,84965.0,0.1943049]
[1744821308894,0.0588366,84988.0,84973.0,0.0588464]
[1744821309097,0.117677,84986.0,84985.0,0.1176744]
[1744821309289,0.0307,84988.0,84987.0,0.1176744]
[1744821309486,0.0588352,84990.0,84989.0,0.176504]
[1744821309891,0.0588352,84990.0,84989.0,0.242104]
[1744821310292,0.0589152,84990.0,84989.0,0.242104]
[1744821310498,8e-05,84990.0,84989.0,0.612904]
[1744821310901,0.1177503,84990.0,84989.0,0.4952351]
[1744821311200,0.1177503,84990.0,84989.0,0.4625351]
[1744821311799,0.1177503,84990.0,84989.0,0.4956351]
[1744821312404,0.1187503,84990.0,84989.0,0.4956351]
[1744821317500,0.1187503,84990.0,84989.0,0.4625351]
[1744821318001,0.1187503,84990.0,84989.0,0.4938351]
[1744821318802,0.1800503,84990.0,84989.0,0.4938351]
[1744821320304,0.1800503,84990.0,84989.0,0.4625351]
[1744821321592,0.1800503,84990.0,84989.0,0.4938351]
[1744821321996,0.1499503,84990.0,84989.0,0.4938351]
[1744821322896,0.1814503,84990.0,84989.0,0.4938351]
[1744821323801,0.03228,84990.0,84989.0,0.4938351]
[1744821324013,0.00108,84990.0,84989.0,0.4938351]
[1744821324500,0.001,84990.0,84989.0,0.4938351]
[1744821324700,0.00108,84990.0,84989.0,0.4938351]
[1744821325212,0.1187503,84990.0,84989.0,0.4938351]
[1744821327707,0.1514503,84990.0,84989.0,0.4938351]
[1744821327904,0.1514503,84990.0,84989.0,0.4625351]
[1744821328099,0.1836503,84990.0,84989.0,0.4625351]
[1744821329299,0.1836503,84990.0,84989.0,0.4948351]
[1744821331106,0.1836503,84990.0,84989.0,0.1340351]
[1744821331312,0.058851,84968.0,84967.0,0.2353928]
[1744821331605,0.2354055,84968.0,84967.0,0.1477021]
[1744821331806,0.2354055,84968.0,84967.0,0.03]
[1744821332395,0.2354055,84968.0,84954.0,0.17961653]
[1744821332396,0.058851,84967.0,84954.0,0.17961653]
[1744821332598,0.1177187,84955.0,84954.0,0.20961653]
[1744821332804,0.1177187,84955.0,84954.0,0.17961653]
[1744821333508,0.1815187,84955.0,84954.0,0.29733663]
[1744821333808,0.1815187,84955.0,84954.0,0.1508201]
[1744821334007,0.1815987,84955.0,84954.0,0.1528201]
[1744821334401,0.1815987,84955.0,84954.0,0.1197201]
[1744821334609,0.1815987,84955.0,84954.0,0.002]
[1744821335900,0.1815987,84955.0,84954.0,0.1187201]
[1744821336305,0.1815987,84955.0,84954.0,0.1893201]
[1744821336511,0.1815187,84955.0,84954.0,0.1893201]
[1744821337513,0.1815187,84955.0,84954.0,0.1883201]
[1744821337715,0.1815187,84955.0,84954.0,0.1903201]
[1744821337918,0.1815187,84955.0,84954.0,0.1913201]
[1744821338116,0.1815187,84955.0,84954.0,0.1608201]
[1744821338312,0.1815187,84955.0,84954.0,0.013]
[1744821338814,0.1815187,84955.0,84954.0,0.003]
[1744821339209,0.1815987,84955.0,84954.0,0.003]
[1744821339607,0.1815987,84955.0,84954.0,0.1187201]
[1744821339805,0.1815987,84955.0,84954.0,0.1197201]
[1744821340008,0.1815987,84955.0,84954.0,0.1187201]
[1744821340310,0.1177201,84954.0,84953.0,0.00506159]
[1744821340705,0.19254301,84954.0,84953.0,0.12278309]
[1744821340901,0.19254301,84954.0,84953.0,0.00506159]
[1744821341206,0.19254301,84954.0,84953.0,0.12278309]
[1744821341413,0.19254301,84954.0,84953.0,0.12378309]